[Event "*** Titled Tuesday Blitz"]
[Site "Chess.com"]
[Date "2021.03.16"]
[Round "9"]
[White "Niktlt"]
[Black "Fighter008"]
[Result "1-0"]
[WhiteElo "2528"]
[BlackElo "2628"]
[TimeControl "180+1"]
[EndTime "11:44:08 PDT"]
[Termination "Niktlt won by resignation"]

1. c4 {[%clk 0:03:00.9]} 1... g6 {[%clk 0:02:57.3]} 2. Nc3 {[%clk 0:03:01.2]}
2... Bg7 {[%clk 0:02:57.7]} 3. g3 {[%clk 0:03:01.7]} 3... d6 {[%clk 0:02:57.2]}
4. Bg2 {[%clk 0:03:01.7]} 4... Nc6 {[%clk 0:02:57.7]} 5. Nf3 {[%clk 0:03:02]}
5... e5 {[%clk 0:02:57.9]} 6. O-O {[%clk 0:03:02.4]} 6... f5 {[%clk 0:02:58.2]}
7. Rb1 {[%clk 0:03:02]} 7... Nf6 {[%clk 0:02:58.4]} 8. b4 {[%clk 0:03:02]} 8...
O-O {[%clk 0:02:59]} 9. d3 {[%clk 0:03:02]} 9... h6 {[%clk 0:02:57.3]} 10. b5
{[%clk 0:03:02]} 10... Ne7 {[%clk 0:02:57.5]} 11. a4 {[%clk 0:03:02.5]} 11...
Be6 {[%clk 0:02:56.4]} 12. a5 {[%clk 0:03:02]} 12... Rb8 {[%clk 0:02:47.8]} 13.
Ne1 {[%clk 0:03:00.5]} 13... d5 {[%clk 0:02:46.4]} 14. Nf3 {[%clk 0:02:41]}
14... e4 {[%clk 0:02:39.2]} 15. Nd4 {[%clk 0:02:40.9]} 15... Bf7 {[%clk
0:02:38.7]} 16. c5 {[%clk 0:02:41.1]} 16... Nd7 {[%clk 0:02:34.7]} 17. dxe4
{[%clk 0:02:34.8]} 17... dxe4 {[%clk 0:02:30.8]} 18. Ba3 {[%clk 0:02:22.2]}
18... Ne5 {[%clk 0:02:28.7]} 19. Nb3 {[%clk 0:02:07.9]} 19... Nc4 {[%clk
0:02:25.3]} 20. Bb4 {[%clk 0:02:07.8]} 20... c6 {[%clk 0:02:11.6]} 21. Qc2
{[%clk 0:02:02.8]} 21... Qc8 {[%clk 0:02:05.2]} 22. Rfd1 {[%clk 0:01:55.6]}
22... a6 {[%clk 0:01:56.9]} 23. bxa6 {[%clk 0:01:31.1]} 23... bxa6 {[%clk
0:01:57.8]} 24. Nd4 {[%clk 0:01:31.7]} 24... Rd8 {[%clk 0:01:52.2]} 25. e3
{[%clk 0:01:31.7]} 25... Ne5 {[%clk 0:01:46.7]} 26. Bf1 {[%clk 0:01:29]} 26...
g5 {[%clk 0:01:34.5]} 27. Ba3 {[%clk 0:01:23.4]} 27... Rxb1 {[%clk 0:01:32.2]}
28. Rxb1 {[%clk 0:01:24.3]} 28... Bg6 {[%clk 0:01:14.9]} 29. Qb3+ {[%clk
0:01:17]} 29... Kh7 {[%clk 0:01:13.7]} 30. Qb7 {[%clk 0:01:05.5]} 30... Qxb7
{[%clk 0:01:04.6]} 31. Rxb7 {[%clk 0:01:06.4]} 31... Bf6 {[%clk 0:00:45.6]} 32.
Bb4 {[%clk 0:00:41.1]} 32... Nf3+ {[%clk 0:00:42.2]} 33. Nxf3 {[%clk 0:00:37.9]}
33... exf3 {[%clk 0:00:43.1]} 34. Bxa6 {[%clk 0:00:34.6]} 34... Rd2 {[%clk
0:00:35.9]} 35. Bf1 {[%clk 0:00:29.8]} 35... f4 {[%clk 0:00:28.3]} 36. Ne4
{[%clk 0:00:21.6]} 36... Bxe4 {[%clk 0:00:27.4]} 37. Bxd2 {[%clk 0:00:21.2]} 1-0

[Event "*** Titled Tuesday Blitz"]
[Site "Chess.com"]
[Date "2021.03.16"]
[Round "9"]
[White "Mikhail_Golubev"]
[Black "PavelShkapenko"]
[Result "0-1"]
[WhiteElo "2546"]
[BlackElo "2706"]
[TimeControl "180+1"]
[EndTime "11:44:09 PDT"]
[Termination "PavelShkapenko won by checkmate"]

1. e4 {[%clk 0:03:00.9]} 1... e5 {[%clk 0:02:59.2]} 2. Nf3 {[%clk 0:02:59.8]}
2... Nc6 {[%clk 0:02:59.3]} 3. Bb5 {[%clk 0:02:59.7]} 3... Bc5 {[%clk
0:02:58.2]} 4. c3 {[%clk 0:02:55]} 4... f5 {[%clk 0:02:57.5]} 5. d3 {[%clk
0:02:38.9]} 5... Nf6 {[%clk 0:02:50.7]} 6. exf5 {[%clk 0:02:26.9]} 6... O-O
{[%clk 0:02:30]} 7. O-O {[%clk 0:02:26.6]} 7... d6 {[%clk 0:02:29.7]} 8. d4
{[%clk 0:02:26.3]} 8... exd4 {[%clk 0:02:27.2]} 9. cxd4 {[%clk 0:02:26.2]} 9...
Bb6 {[%clk 0:02:27.7]} 10. Qb3+ {[%clk 0:01:37.9]} 10... Kh8 {[%clk 0:02:27.1]}
11. Bxc6 {[%clk 0:01:25.5]} 11... bxc6 {[%clk 0:02:27]} 12. Ng5 {[%clk
0:01:25.7]} 12... Nd5 {[%clk 0:02:04.9]} 13. Qh3 {[%clk 0:01:23.4]} 13... Bxf5
{[%clk 0:02:04.3]} 14. g4 {[%clk 0:01:18.5]} 14... Bg6 {[%clk 0:02:01.1]} 15.
Ne6 {[%clk 0:01:18.4]} 15... Qf6 {[%clk 0:02:01.3]} 16. Nxf8 {[%clk 0:01:14.4]}
16... Rxf8 {[%clk 0:02:01.5]} 17. Nc3 {[%clk 0:00:51.9]} 17... Bxd4 {[%clk
0:01:44.1]} 18. Be3 {[%clk 0:00:51.8]} 18... Bxc3 {[%clk 0:01:05.2]} 19. bxc3
{[%clk 0:00:52.7]} 19... Nxc3 {[%clk 0:01:05.5]} 20. Rae1 {[%clk 0:00:19.4]}
20... Bd3 {[%clk 0:00:59.9]} 21. g5 {[%clk 0:00:17.7]} 21... Qg6 {[%clk
0:00:42.9]} 22. Bd2 {[%clk 0:00:10.5]} 22... Bxf1 {[%clk 0:00:31.3]} 23. Qxc3
{[%clk 0:00:10.3]} 23... Bd3 {[%clk 0:00:25.4]} 24. Re7 {[%clk 0:00:08.8]} 24...
Be4 {[%clk 0:00:23.7]} 25. Rxc7 {[%clk 0:00:07.4]} 25... h5 {[%clk 0:00:18.9]}
26. Rxa7 {[%clk 0:00:05.9]} 26... Rf7 {[%clk 0:00:18.2]} 27. Rxf7 {[%clk
0:00:04.5]} 27... Qxf7 {[%clk 0:00:18.6]} 28. Be3 {[%clk 0:00:04.4]} 28... Qf3
{[%clk 0:00:18.4]} 29. Qd4 {[%clk 0:00:03.5]} 29... Qh1# {[%clk 0:00:18.2]} 0-1

[Event "*** Titled Tuesday Blitz"]
[Site "Chess.com"]
[Date "2021.03.16"]
[Round "9"]
[White "Darius321"]
[Black "Das_Virus_2020"]
[Result "0-1"]
[WhiteElo "2291"]
[BlackElo "2476"]
[TimeControl "180+1"]
[EndTime "11:44:10 PDT"]
[Termination "Das_Virus_2020 won by checkmate"]

1. e4 {[%clk 0:03:00.9]} 1... e6 {[%clk 0:02:59.5]} 2. d4 {[%clk 0:03:00.3]}
2... d5 {[%clk 0:02:59.4]} 3. e5 {[%clk 0:03:00.8]} 3... c5 {[%clk 0:02:59.1]}
4. c3 {[%clk 0:03:01.4]} 4... Nc6 {[%clk 0:02:58.3]} 5. Nf3 {[%clk 0:03:01.7]}
5... Qb6 {[%clk 0:02:55.7]} 6. Na3 {[%clk 0:02:57.7]} 6... cxd4 {[%clk
0:02:50.7]} 7. cxd4 {[%clk 0:02:58.6]} 7... Bxa3 {[%clk 0:02:47.7]} 8. bxa3
{[%clk 0:02:58.3]} 8... Nge7 {[%clk 0:02:46.5]} 9. Bd3 {[%clk 0:02:57.4]} 9...
Qa5+ {[%clk 0:02:43.7]} 10. Kf1 {[%clk 0:02:51.4]} 10... Bd7 {[%clk 0:02:43.1]}
11. g3 {[%clk 0:02:47.4]} 11... Nf5 {[%clk 0:02:36.3]} 12. Bxf5 {[%clk
0:02:43.7]} 12... exf5 {[%clk 0:02:37.2]} 13. Kg2 {[%clk 0:02:43.1]} 13... O-O
{[%clk 0:02:36.3]} 14. Rb1 {[%clk 0:02:42.7]} 14... b6 {[%clk 0:02:33.8]} 15.
Qd3 {[%clk 0:02:33.6]} 15... Be6 {[%clk 0:02:27.3]} 16. Nh4 {[%clk 0:02:02.2]}
16... Qa4 {[%clk 0:02:06.9]} 17. Be3 {[%clk 0:01:59]} 17... Ne7 {[%clk
0:01:56.6]} 18. Rb4 {[%clk 0:01:42.7]} 18... Qd7 {[%clk 0:01:53.2]} 19. Rhb1
{[%clk 0:01:29.2]} 19... Rfc8 {[%clk 0:01:52]} 20. a4 {[%clk 0:01:28.7]} 20...
Rc4 {[%clk 0:01:48.7]} 21. a5 {[%clk 0:01:19.9]} 21... Rxb4 {[%clk 0:01:29.8]}
22. Rxb4 {[%clk 0:01:20.8]} 22... bxa5 {[%clk 0:01:30.1]} 23. Rb5 {[%clk
0:01:18.5]} 23... h6 {[%clk 0:01:15.5]} 24. Nf3 {[%clk 0:01:10.9]} 24... Rc8
{[%clk 0:01:04.3]} 25. Rxa5 {[%clk 0:01:07.4]} 25... Rc4 {[%clk 0:00:59.3]} 26.
Qa3 {[%clk 0:01:00]} 26... Nc6 {[%clk 0:00:53]} 27. Rc5 {[%clk 0:00:54.1]} 27...
g5 {[%clk 0:00:22.1]} 28. Nd2 {[%clk 0:00:52.6]} 28... Rxc5 {[%clk 0:00:19.3]}
29. Qxc5 {[%clk 0:00:52]} 29... f4 {[%clk 0:00:19.3]} 30. gxf4 {[%clk
0:00:49.9]} 30... Bh3+ {[%clk 0:00:19.2]} 31. Kh1 {[%clk 0:00:24.9]} 31... Qg4
{[%clk 0:00:15.3]} 32. Qxd5 {[%clk 0:00:21.5]} 32... Qd1+ {[%clk 0:00:14.8]} 33.
Nf1 {[%clk 0:00:15.4]} 33... Qxf1# {[%clk 0:00:14.1]} 0-1

[Event "*** Titled Tuesday Blitz"]
[Site "Chess.com"]
[Date "2021.03.16"]
[Round "9"]
[White "MaevskiyNikolay"]
[Black "ChessQueen"]
[Result "0-1"]
[WhiteElo "2554"]
[BlackElo "2718"]
[TimeControl "180+1"]
[EndTime "11:44:14 PDT"]
[Termination "ChessQueen won on time"]

1. d4 {[%clk 0:02:56.1]} 1... Nf6 {[%clk 0:02:59.5]} 2. c4 {[%clk 0:02:55.8]}
2... e6 {[%clk 0:02:59.5]} 3. Nf3 {[%clk 0:02:55.7]} 3... c5 {[%clk 0:02:58.4]}
4. e3 {[%clk 0:02:52.1]} 4... d5 {[%clk 0:02:57.6]} 5. b3 {[%clk 0:02:47.8]}
5... Nc6 {[%clk 0:02:56.5]} 6. Bb2 {[%clk 0:02:48]} 6... cxd4 {[%clk 0:02:55]}
7. exd4 {[%clk 0:02:48]} 7... Bb4+ {[%clk 0:02:55.2]} 8. Nbd2 {[%clk 0:02:47.3]}
8... O-O {[%clk 0:02:47.6]} 9. Bd3 {[%clk 0:02:47.3]} 9... b6 {[%clk 0:02:42.4]}
10. O-O {[%clk 0:02:47]} 10... Be7 {[%clk 0:02:37.2]} 11. Re1 {[%clk 0:02:46.2]}
11... Bb7 {[%clk 0:02:36.9]} 12. Rc1 {[%clk 0:02:45.7]} 12... Rc8 {[%clk
0:02:36.7]} 13. Bb1 {[%clk 0:02:43]} 13... dxc4 {[%clk 0:02:33.8]} 14. bxc4
{[%clk 0:02:41.8]} 14... Re8 {[%clk 0:02:25]} 15. Qe2 {[%clk 0:02:38.3]} 15...
Bf8 {[%clk 0:02:23.9]} 16. Red1 {[%clk 0:02:33.2]} 16... g6 {[%clk 0:02:23.1]}
17. h3 {[%clk 0:02:28.5]} 17... Bg7 {[%clk 0:02:22.6]} 18. Nb3 {[%clk 0:02:24]}
18... Ne7 {[%clk 0:02:19.2]} 19. Ne5 {[%clk 0:02:17.1]} 19... Nf5 {[%clk
0:02:16.1]} 20. c5 {[%clk 0:02:03.3]} 20... Qd5 {[%clk 0:02:10.5]} 21. f3 {[%clk
0:01:52.8]} 21... Ng3 {[%clk 0:01:58.2]} 22. Qe1 {[%clk 0:01:41.1]} 22... Nfh5
{[%clk 0:01:45.1]} 23. Be4 {[%clk 0:00:45.2]} 23... Nxe4 {[%clk 0:01:36.4]} 24.
fxe4 {[%clk 0:00:45.5]} 24... Qxe4 {[%clk 0:01:35.6]} 25. c6 {[%clk 0:00:45.7]}
25... Qxe1+ {[%clk 0:01:30.7]} 26. Rxe1 {[%clk 0:00:45.4]} 26... Ba6 {[%clk
0:01:31.1]} 27. c7 {[%clk 0:00:33.4]} 27... Nf4 {[%clk 0:01:19.2]} 28. Rc2
{[%clk 0:00:15.3]} 28... f6 {[%clk 0:01:09.1]} 29. Nf3 {[%clk 0:00:08.4]} 29...
Nd5 {[%clk 0:01:03.8]} 30. Ba3 {[%clk 0:00:07]} 30... Rxc7 {[%clk 0:01:01]} 31.
Rxc7 {[%clk 0:00:07]} 31... Nxc7 {[%clk 0:01:01.9]} 32. Rc1 {[%clk 0:00:07.1]}
32... Nd5 {[%clk 0:00:59.1]} 33. Nbd2 {[%clk 0:00:06.2]} 33... Bh6 {[%clk
0:00:57]} 34. Rc2 {[%clk 0:00:06]} 34... Rc8 {[%clk 0:00:46.4]} 35. Rxc8+ {[%clk
0:00:05.7]} 35... Bxc8 {[%clk 0:00:47.3]} 36. Ne4 {[%clk 0:00:05.7]} 36... Ba6
{[%clk 0:00:44.5]} 37. Nd6 {[%clk 0:00:04.4]} 37... Bf8 {[%clk 0:00:43.4]} 38.
Nd2 {[%clk 0:00:01.3]} 38... Nc3 {[%clk 0:00:37.5]} 0-1

[Event "*** Titled Tuesday Blitz"]
[Site "Chess.com"]
[Date "2021.03.16"]
[Round "9"]
[White "RobertoJBM"]
[Black "karinachess1"]
[Result "1-0"]
[WhiteElo "2756"]
[BlackElo "2513"]
[TimeControl "180+1"]
[EndTime "11:44:15 PDT"]
[Termination "RobertoJBM won on time"]

1. d4 {[%clk 0:03:00.9]} 1... Nf6 {[%clk 0:02:57.9]} 2. c4 {[%clk 0:03:00.6]}
2... e6 {[%clk 0:02:58.2]} 3. Nf3 {[%clk 0:03:00]} 3... d5 {[%clk 0:02:58.2]} 4.
e3 {[%clk 0:03:00.3]} 4... b6 {[%clk 0:02:56.3]} 5. Nc3 {[%clk 0:02:58.8]} 5...
Be7 {[%clk 0:02:56.4]} 6. Bd3 {[%clk 0:02:51.1]} 6... O-O {[%clk 0:02:55.1]} 7.
O-O {[%clk 0:02:51]} 7... Bb7 {[%clk 0:02:47.7]} 8. Qe2 {[%clk 0:02:50.9]} 8...
c5 {[%clk 0:02:44.5]} 9. cxd5 {[%clk 0:02:48.5]} 9... exd5 {[%clk 0:02:42.3]}
10. Rd1 {[%clk 0:02:46.7]} 10... Nbd7 {[%clk 0:02:22.1]} 11. b3 {[%clk
0:02:44.5]} 11... Rc8 {[%clk 0:02:18.3]} 12. Bb2 {[%clk 0:02:44.3]} 12... Ne4
{[%clk 0:02:03.1]} 13. Rac1 {[%clk 0:02:42.6]} 13... Ndf6 {[%clk 0:01:58.1]} 14.
dxc5 {[%clk 0:02:35.3]} 14... bxc5 {[%clk 0:01:48.7]} 15. Bxe4 {[%clk
0:02:27.3]} 15... Nxe4 {[%clk 0:01:08.3]} 16. Nxe4 {[%clk 0:02:25.5]} 16... Qa5
{[%clk 0:01:01]} 17. Nc3 {[%clk 0:02:14.4]} 17... Rfd8 {[%clk 0:00:59.7]} 18.
Rd2 {[%clk 0:01:50.5]} 18... Bf6 {[%clk 0:00:51.7]} 19. Na4 {[%clk 0:01:46.8]}
19... Be7 {[%clk 0:00:42.6]} 20. Bc3 {[%clk 0:01:36.9]} 20... Qc7 {[%clk
0:00:40.6]} 21. Rdc2 {[%clk 0:01:21.3]} 21... Re8 {[%clk 0:00:31.1]} 22. Bd4
{[%clk 0:01:13.7]} 22... c4 {[%clk 0:00:23.2]} 23. bxc4 {[%clk 0:01:11.2]} 23...
Ba6 {[%clk 0:00:23.6]} 24. Nb2 {[%clk 0:01:08.3]} 24... Ba3 {[%clk 0:00:20.1]}
25. Qd3 {[%clk 0:01:00.8]} 25... Qe7 {[%clk 0:00:20.2]} 26. Qc3 {[%clk
0:00:59.4]} 26... dxc4 {[%clk 0:00:20.1]} 27. Bxg7 {[%clk 0:00:56.4]} 27... Bb4
{[%clk 0:00:19.8]} 28. Qf6 {[%clk 0:00:53.9]} 28... c3 {[%clk 0:00:19.1]} 29.
Qxe7 {[%clk 0:00:48]} 29... Rxe7 {[%clk 0:00:19.5]} 30. Bxc3 {[%clk 0:00:47.5]}
30... Rec7 {[%clk 0:00:19.7]} 31. Nd1 {[%clk 0:00:46.6]} 31... Bd3 {[%clk
0:00:16.4]} 32. Rd2 {[%clk 0:00:46.9]} 32... Be4 {[%clk 0:00:16.8]} 33. Rd4
{[%clk 0:00:44.6]} 33... Bxf3 {[%clk 0:00:16.4]} 34. Rxb4 {[%clk 0:00:32.9]}
34... Bxd1 {[%clk 0:00:15.9]} 35. Rxd1 {[%clk 0:00:33.8]} 35... Rc4 {[%clk
0:00:16.2]} 36. Rxc4 {[%clk 0:00:32.4]} 1-0

[Event "*** Titled Tuesday Blitz"]
[Site "Chess.com"]
[Date "2021.03.16"]
[Round "9"]
[White "frequentblunders"]
[Black "LubovMarkelova"]
[Result "0-1"]
[WhiteElo "2069"]
[BlackElo "2240"]
[TimeControl "180+1"]
[EndTime "11:44:20 PDT"]
[Termination "LubovMarkelova won on time"]

1. d3 {[%clk 0:02:57.9]} 1... d5 {[%clk 0:02:59.1]} 2. f4 {[%clk 0:02:58.8]}
2... c5 {[%clk 0:02:56.5]} 3. Nf3 {[%clk 0:02:58.8]} 3... Nf6 {[%clk 0:02:56.2]}
4. g3 {[%clk 0:02:59.7]} 4... g6 {[%clk 0:02:56.5]} 5. Bg2 {[%clk 0:03:00.6]}
5... Bg7 {[%clk 0:02:56.5]} 6. O-O {[%clk 0:03:01.5]} 6... O-O {[%clk
0:02:55.3]} 7. Nc3 {[%clk 0:03:02.2]} 7... d4 {[%clk 0:02:53]} 8. Ne4 {[%clk
0:03:02.7]} 8... Nxe4 {[%clk 0:02:52.6]} 9. dxe4 {[%clk 0:03:03.6]} 9... Nc6
{[%clk 0:02:52.3]} 10. h3 {[%clk 0:03:01.1]} 10... e5 {[%clk 0:02:49.9]} 11. e3
{[%clk 0:02:49.8]} 11... dxe3 {[%clk 0:02:44.7]} 12. Bxe3 {[%clk 0:02:46.1]}
12... exf4 {[%clk 0:02:40.5]} 13. gxf4 {[%clk 0:02:44.1]} 13... b6 {[%clk
0:02:36.6]} 14. c3 {[%clk 0:02:35.2]} 14... Ba6 {[%clk 0:02:34.6]} 15. Re1
{[%clk 0:02:32.9]} 15... Qe7 {[%clk 0:02:25.8]} 16. e5 {[%clk 0:02:30.7]} 16...
Rfd8 {[%clk 0:02:24]} 17. Qa4 {[%clk 0:02:29.6]} 17... Bb7 {[%clk 0:02:20.9]}
18. Ng5 {[%clk 0:02:26.1]} 18... Na5 {[%clk 0:02:03.9]} 19. Ne4 {[%clk
0:02:21.9]} 19... Bc6 {[%clk 0:02:01.1]} 20. Qc2 {[%clk 0:02:18.9]} 20... Nc4
{[%clk 0:01:59.9]} 21. Bc1 {[%clk 0:02:16.2]} 21... Rac8 {[%clk 0:01:43.9]} 22.
b3 {[%clk 0:02:12.7]} 22... Nxe5 {[%clk 0:01:35.9]} 23. fxe5 {[%clk 0:02:09.9]}
23... Qxe5 {[%clk 0:01:34.9]} 24. Bb2 {[%clk 0:01:27]} 24... Re8 {[%clk
0:01:27.7]} 25. Rad1 {[%clk 0:01:03.1]} 25... Qf4 {[%clk 0:01:26.1]} 26. Nd6
{[%clk 0:00:58.1]} 26... Bxg2 {[%clk 0:01:11.8]} 27. Nxc8 {[%clk 0:00:27.2]}
27... Be4 {[%clk 0:00:49.1]} 28. Rxe4 {[%clk 0:00:13.9]} 28... Rxe4 {[%clk
0:00:47.4]} 29. Nd6 {[%clk 0:00:10.9]} 29... Re3 {[%clk 0:00:22.6]} 30. Qg2
{[%clk 0:00:02]} 30... Rg3 {[%clk 0:00:20.1]} 0-1

[Event "*** Titled Tuesday Blitz"]
[Site "Chess.com"]
[Date "2021.03.16"]
[Round "9"]
[White "SharapovEvgeny"]
[Black "ChelsieMonica"]
[Result "1-0"]
[WhiteElo "2475"]
[BlackElo "2344"]
[TimeControl "180+1"]
[EndTime "11:44:21 PDT"]
[Termination "SharapovEvgeny won on time"]

1. c4 {[%clk 0:02:58.7]} 1... Nf6 {[%clk 0:02:58.5]} 2. Nc3 {[%clk 0:02:57.7]}
2... e5 {[%clk 0:02:58.2]} 3. g3 {[%clk 0:02:57.1]} 3... d6 {[%clk 0:02:57.4]}
4. Bg2 {[%clk 0:02:56.9]} 4... g6 {[%clk 0:02:58.1]} 5. e3 {[%clk 0:02:56.6]}
5... Bg7 {[%clk 0:02:58.5]} 6. Nge2 {[%clk 0:02:56.2]} 6... O-O {[%clk
0:02:59.4]} 7. O-O {[%clk 0:02:55.9]} 7... c6 {[%clk 0:03:00.3]} 8. d4 {[%clk
0:02:49.7]} 8... Qc7 {[%clk 0:03:01.2]} 9. b3 {[%clk 0:02:48.8]} 9... a5 {[%clk
0:02:56.9]} 10. Bb2 {[%clk 0:02:48.2]} 10... Re8 {[%clk 0:02:55.6]} 11. Qd2
{[%clk 0:02:47.6]} 11... Nbd7 {[%clk 0:02:44.4]} 12. Rfd1 {[%clk 0:02:46.6]}
12... e4 {[%clk 0:02:41.5]} 13. Qc2 {[%clk 0:02:41.3]} 13... d5 {[%clk
0:02:40.4]} 14. cxd5 {[%clk 0:02:40.1]} 14... cxd5 {[%clk 0:02:40.9]} 15. Rac1
{[%clk 0:02:38.8]} 15... Nb6 {[%clk 0:02:23.1]} 16. Nxe4 {[%clk 0:02:34.3]}
16... Qxc2 {[%clk 0:02:19.9]} 17. Nxf6+ {[%clk 0:02:33.8]} 17... Bxf6 {[%clk
0:02:20.8]} 18. Rxc2 {[%clk 0:02:33.7]} 18... Bg4 {[%clk 0:02:20.8]} 19. h3
{[%clk 0:02:27]} 19... Bxe2 {[%clk 0:02:17.2]} 20. Rxe2 {[%clk 0:02:26.5]} 20...
a4 {[%clk 0:02:18.1]} 21. Rc2 {[%clk 0:02:20.3]} 21... axb3 {[%clk 0:02:16.2]}
22. axb3 {[%clk 0:02:19.8]} 22... Ra2 {[%clk 0:02:13.5]} 23. Rdc1 {[%clk
0:02:17]} 23... Kg7 {[%clk 0:02:01.6]} 24. Kf1 {[%clk 0:02:12.6]} 24... Rea8
{[%clk 0:01:54.3]} 25. Ke2 {[%clk 0:02:11.9]} 25... R8a5 {[%clk 0:01:54.1]} 26.
Bc3 {[%clk 0:02:11]} 26... Rxc2+ {[%clk 0:01:48.9]} 27. Rxc2 {[%clk 0:02:10.7]}
27... Ra3 {[%clk 0:01:49.6]} 28. Rb2 {[%clk 0:02:07.5]} 28... Be7 {[%clk
0:01:45.8]} 29. Kd2 {[%clk 0:02:05.8]} 29... Kf6 {[%clk 0:01:42.4]} 30. Kc2
{[%clk 0:02:05.4]} 30... Ke6 {[%clk 0:01:42.3]} 31. Rb1 {[%clk 0:01:55.6]} 31...
Ra2+ {[%clk 0:01:41.6]} 32. Rb2 {[%clk 0:01:48.8]} 32... Ra1 {[%clk 0:01:41.4]}
33. Bf3 {[%clk 0:01:32.4]} 33... Ba3 {[%clk 0:01:27]} 34. Rb1 {[%clk 0:01:31.9]}
34... Ra2+ {[%clk 0:01:26.6]} 35. Bb2 {[%clk 0:01:31.7]} 35... Bxb2 {[%clk
0:01:26.4]} 36. Rxb2 {[%clk 0:01:31.4]} 36... Ra1 {[%clk 0:01:26.9]} 37. h4
{[%clk 0:01:28.7]} 37... h6 {[%clk 0:01:25.3]} 38. Kc3 {[%clk 0:01:28]} 38...
Nc8 {[%clk 0:01:19]} 39. Kb4 {[%clk 0:01:24.2]} 39... Nd6 {[%clk 0:01:13.2]} 40.
Kc5 {[%clk 0:01:21.9]} 40... Rc1+ {[%clk 0:01:09.7]} 41. Kb4 {[%clk 0:01:18.8]}
41... f5 {[%clk 0:01:05.9]} 42. Ra2 {[%clk 0:01:16.9]} 42... g5 {[%clk
0:01:04.8]} 43. hxg5 {[%clk 0:01:16]} 43... hxg5 {[%clk 0:01:05.7]} 44. Ra5
{[%clk 0:01:12.5]} 44... Ne4 {[%clk 0:01:01]} 45. Bxe4 {[%clk 0:01:11.4]} 45...
fxe4 {[%clk 0:01:00.7]} 46. Ra8 {[%clk 0:01:07]} 46... Kf5 {[%clk 0:00:29.7]}
47. Rf8+ {[%clk 0:01:04]} 47... Kg4 {[%clk 0:00:29.7]} 48. Kb5 {[%clk
0:01:02.4]} 48... Rc2 {[%clk 0:00:28.5]} 49. b4 {[%clk 0:01:02]} 49... Rc5+
{[%clk 0:00:23.2]} 50. bxc5 {[%clk 0:01:00.4]} 1-0

[Event "*** Titled Tuesday Blitz"]
[Site "Chess.com"]
[Date "2021.03.16"]
[Round "9"]
[White "Maddie"]
[Black "novocane"]
[Result "0-1"]
[WhiteElo "2059"]
[BlackElo "2234"]
[TimeControl "180+1"]
[EndTime "11:44:22 PDT"]
[Termination "novocane won on time"]

1. d4 {[%clk 0:02:05.9]} 1... Nf6 {[%clk 0:02:59]} 2. Nf3 {[%clk 0:02:05.3]}
2... e6 {[%clk 0:02:59.1]} 3. e3 {[%clk 0:02:05.1]} 3... b6 {[%clk 0:02:58.4]}
4. Bd3 {[%clk 0:02:05.4]} 4... Bb7 {[%clk 0:02:58.3]} 5. O-O {[%clk 0:02:05.8]}
5... Be7 {[%clk 0:02:58.3]} 6. Nbd2 {[%clk 0:02:06]} 6... O-O {[%clk 0:02:58.2]}
7. b3 {[%clk 0:02:05.6]} 7... c5 {[%clk 0:02:58.1]} 8. Bb2 {[%clk 0:02:05.3]}
8... d5 {[%clk 0:02:57.2]} 9. Ne5 {[%clk 0:02:03.2]} 9... Nbd7 {[%clk 0:02:49]}
10. f4 {[%clk 0:01:50.1]} 10... Ne4 {[%clk 0:02:42.7]} 11. Nxd7 {[%clk
0:01:42.9]} 11... Qxd7 {[%clk 0:02:43.6]} 12. Nf3 {[%clk 0:01:32.4]} 12... f6
{[%clk 0:02:24.3]} 13. c4 {[%clk 0:01:28.4]} 13... Rad8 {[%clk 0:02:16.5]} 14.
Qc2 {[%clk 0:01:10.5]} 14... Qc8 {[%clk 0:01:57.8]} 15. Rac1 {[%clk 0:01:03.8]}
15... Qa8 {[%clk 0:01:51.2]} 16. cxd5 {[%clk 0:00:44.8]} 16... exd5 {[%clk
0:01:39.7]} 17. dxc5 {[%clk 0:00:41.9]} 17... bxc5 {[%clk 0:01:32.2]} 18. Nh4
{[%clk 0:00:37.2]} 18... Rfe8 {[%clk 0:01:14]} 19. Nf5 {[%clk 0:00:26]} 19...
Bf8 {[%clk 0:01:13.1]} 20. Bxe4 {[%clk 0:00:17.3]} 20... Rxe4 {[%clk 0:01:08.8]}
21. Rf3 {[%clk 0:00:17.4]} 21... Rde8 {[%clk 0:00:43.7]} 22. Rh3 {[%clk
0:00:17.3]} 22... g6 {[%clk 0:00:43]} 23. Ng3 {[%clk 0:00:16.7]} 23... Rxe3
{[%clk 0:00:33.7]} 24. Bxf6 {[%clk 0:00:14.8]} 24... Bg7 {[%clk 0:00:23.9]} 25.
Bxg7 {[%clk 0:00:11.7]} 25... Kxg7 {[%clk 0:00:24.8]} 26. f5 {[%clk 0:00:09.8]}
26... d4 {[%clk 0:00:22.3]} 27. fxg6 {[%clk 0:00:08.6]} 27... hxg6 {[%clk
0:00:22.3]} 28. Nf1 {[%clk 0:00:06.5]} 28... Re2 {[%clk 0:00:20.3]} 29. Qd3
{[%clk 0:00:04.7]} 29... Rxg2+ {[%clk 0:00:19.9]} 30. Kh1 {[%clk 0:00:03.2]}
30... Rg3+ {[%clk 0:00:19.8]} 0-1

[Event "*** Titled Tuesday Blitz"]
[Site "Chess.com"]
[Date "2021.03.16"]
[Round "9"]
[White "fabianvivasz"]
[Black "GelmanAlexander"]
[Result "1-0"]
[WhiteElo "2395"]
[BlackElo "2553"]
[TimeControl "180+1"]
[EndTime "11:44:24 PDT"]
[Termination "fabianvivasz won by resignation"]

1. e4 {[%clk 0:03:00.9]} 1... c5 {[%clk 0:03:00]} 2. Nf3 {[%clk 0:03:00.1]} 2...
e6 {[%clk 0:03:00.3]} 3. d4 {[%clk 0:03:00.5]} 3... cxd4 {[%clk 0:03:00.5]} 4.
Nxd4 {[%clk 0:03:01.4]} 4... a6 {[%clk 0:03:00.8]} 5. Bd3 {[%clk 0:03:01]} 5...
d6 {[%clk 0:03:00.7]} 6. O-O {[%clk 0:02:57.2]} 6... Nf6 {[%clk 0:03:01.3]} 7.
Qe2 {[%clk 0:02:55]} 7... Nbd7 {[%clk 0:02:59.7]} 8. f4 {[%clk 0:02:54.8]} 8...
Qc7 {[%clk 0:02:57.9]} 9. c4 {[%clk 0:02:53.9]} 9... b6 {[%clk 0:02:52.4]} 10.
Nc3 {[%clk 0:02:52]} 10... Bb7 {[%clk 0:02:52.8]} 11. b4 {[%clk 0:02:40.1]}
11... Be7 {[%clk 0:02:51.7]} 12. Bd2 {[%clk 0:02:38]} 12... O-O {[%clk
0:02:47.8]} 13. g4 {[%clk 0:02:32.1]} 13... g6 {[%clk 0:01:58.6]} 14. g5 {[%clk
0:02:07.7]} 14... Nh5 {[%clk 0:01:58.1]} 15. Rf3 {[%clk 0:01:52.9]} 15... Rae8
{[%clk 0:01:25.3]} 16. Rh3 {[%clk 0:01:51.1]} 16... Ng7 {[%clk 0:01:22.8]} 17.
Rf1 {[%clk 0:00:59.4]} 17... f6 {[%clk 0:01:06.3]} 18. Qg4 {[%clk 0:00:46.9]}
18... f5 {[%clk 0:00:50.4]} 19. Qe2 {[%clk 0:00:28.5]} 19... e5 {[%clk
0:00:35.6]} 20. Nxf5 {[%clk 0:00:19.6]} 20... gxf5 {[%clk 0:00:32.8]} 21. exf5
{[%clk 0:00:20.2]} 21... Nxf5 {[%clk 0:00:10.8]} 22. Qh5 {[%clk 0:00:20]} 22...
Rf7 {[%clk 0:00:08.8]} 23. Bxf5 {[%clk 0:00:18.8]} 23... Nf8 {[%clk 0:00:09.1]}
24. g6 {[%clk 0:00:14.6]} 24... Rg7 {[%clk 0:00:09.4]} 25. Kf2 {[%clk
0:00:11.1]} 25... Qxc4 {[%clk 0:00:09]} 26. gxh7+ {[%clk 0:00:10.4]} 26... Kh8
{[%clk 0:00:09.1]} 27. Qxe8 {[%clk 0:00:10.6]} 27... Qd4+ {[%clk 0:00:07]} 28.
Ke2 {[%clk 0:00:10.5]} 28... e4 {[%clk 0:00:05.1]} 29. Rg3 {[%clk 0:00:10.1]}
29... Rxg3 {[%clk 0:00:03.6]} 30. hxg3 {[%clk 0:00:11]} 30... Qd3+ {[%clk
0:00:04.2]} 31. Ke1 {[%clk 0:00:11.4]} 31... e3 {[%clk 0:00:04.6]} 32. Bxd3
{[%clk 0:00:11.2]} 32... exd2+ {[%clk 0:00:04.6]} 33. Kxd2 {[%clk 0:00:12.1]}
1-0